bitfinex-derivatives/quotes_SOLF0:USTF0_20241024
["timestamp","ask_amount","ask_price","bid_price","bid_amount"]
[1729743447999,4.52,174.09,174.03,2.38096]
[1729743448590,1.278,174.11,174.03,1.09996]
[1729743448896,11.04228666,174.08,174.03,1.09996]
[1729743449190,4.52,174.1,174.03,1.14939]
[1729743449397,13.91738666,174.08,174.03,1.14939]
[1729743449595,11.04228666,174.08,174.03,1.14939]
[1729743450193,2.8753,174.06,174.03,1.14939]
[1729743450499,4.52,174.05,174.03,1.14939]
[1729743450690,4.52,174.05,174.02,1.09984]
[1729743452294,7.3955,174.05,174.02,1.09984]
[1729743452902,4.52,174.05,174.02,1.09984]
[1729743455509,2.8757,174.03,174.02,1.09984]
[1729743455897,4.52,174.05,174.02,1.14939]
[1729743456404,4.52,174.05,174.02,1.0999]
[1729743457300,2.8757,174.04,174.02,1.0999]
[1729743458100,2.8756,174.04,174.02,1.0999]
[1729743458300,4.52,174.05,174.02,1.0999]
[1729743458501,4.52,174.05,174.01,1.0999]
[1729743458698,4.52,174.05,173.98,1.2811]
[1729743458699,1.7762,174.01,173.98,1.2811]
[1729743458900,4.52,174.0,173.96,1.2872]
[1729743459102,7.3963,174.0,173.96,2.43659]
[1729743459691,4.52,174.0,173.96,2.43659]
[1729743460299,7.3963,174.0,173.96,2.43659]
[1729743460499,7.3963,174.0,173.96,1.14939]
[1729743460699,4.52,174.0,173.96,1.14939]
[1729743460904,2.8765,173.99,173.96,1.09958]
[1729743461106,4.52,174.0,173.96,1.09958]
[1729743461604,7.3963,174.0,173.96,1.09958]
[1729743461804,7.3963,174.0,173.96,1.14939]
[1729743461996,4.52,174.0,173.96,1.14939]
[1729743462393,2.8764,173.99,173.96,1.14939]
[1729743463199,15.56228666,174.0,173.96,1.14939]
[1729743463393,2.8767,173.98,173.96,1.14939]
[1729743463903,15.56228666,174.0,173.96,1.14939]
[1729743464200,2.8767,173.97,173.96,1.14939]
[1729743465002,11.04228666,173.98,173.78,8.6396]
[1729743465204,2.8772,173.95,173.89,2.8779]
[1729743465405,4.52,173.94,173.89,4.02729]
[1729743466109,4.52,173.94,173.89,3.97777]
[1729743467304,2.8772,173.95,173.89,1.09987]
[1729743467305,11.04228666,173.95,173.89,1.09987]
[1729743467495,11.04228666,173.97,173.89,1.09987]
[1729743467700,4.52,173.96,173.89,1.15011]
[1729743467905,2.8771,173.95,173.89,3.97806]
[1729743468105,11.04228666,173.97,173.89,1.09996]
[1729743468303,4.52,173.96,173.92,2.8775]
[1729743468505,4.52,173.96,173.93,1.2568]
[1729743468899,1.2362,174.03,173.93,1.2568]
[1729743469099,4.52,174.02,173.94,1.05733402]
[1729743469805,11.04228666,174.03,173.94,2.15729402]
[1729743470005,4.52,174.02,173.95,1.05726558]
[1729743470301,11.04228666,174.05,173.95,2.15722558]
[1729743470609,2.8758,174.03,173.96,2.8767]
[1729743470802,4.52,174.02,173.97,1.05710735]
[1729743471007,4.52,174.02,173.97,2.26680735]
[1729743471211,4.52,174.02,173.98,2.8766]
[1729743471801,4.52,174.02,173.98,3.97656]
[1729743472407,4.52,174.02,174.0,2.8762]
[1729743472909,4.52,174.05,174.0,3.97616]
[1729743473107,1.2254,174.12,174.0,3.97616]
[1729743473108,13.91698666,174.1,174.03,2.8757]
[1729743473304,4.52,174.09,174.01,1.1789]
[1729743473508,4.52,174.09,174.01,2.27886]
[1729743473709,4.52,174.09,174.04,2.8755]
[1729743473908,4.52,174.09,174.04,1.09996]
[1729743474305,4.52,174.09,174.06,2.8752]
[1729743474610,4.52,174.09,174.06,3.97516]
[1729743474805,2.8743,174.12,174.06,3.97516]
[1729743475108,4.52,174.11,174.06,3.97516]
[1729743476710,2.8751,174.07,174.06,1.09996]
[1729743476907,4.52,174.07,174.04,1.10018]
[1729743477210,4.52,174.07,173.99,1.1876]
[1729743477211,11.04228666,174.06,173.99,1.1876]
[1729743477412,11.04228666,174.06,173.99,2.33709]
[1729743477413,2.8756,174.04,173.99,2.33709]
[1729743477606,2.8756,174.04,173.99,2.28756]
[1729743477802,2.8756,174.04,173.99,2.08757]
[1729743478207,2.8756,174.04,173.99,2.33712]
[1729743478411,2.8755,174.05,173.99,5.21352]
[1729743479514,11.04228666,174.06,174.0,2.8762]
[1729743479515,13.91768666,174.06,174.0,2.8762]
[1729743479704,1.2439,174.12,174.0,11.04228666]
[1729743479904,179.82481363,174.22,174.02,11.04228666]
[1729743480109,11.04228666,174.17,174.05,11.04228666]
[1729743480308,11.04228666,174.17,174.0,1.14952]
[1729743480309,4.52,174.16,174.06,1.1863]
[1729743480504,2.8741,174.13,174.06,1.1863]
[1729743480707,22.18710046,174.16,174.05,1.14952]
[1729743481210,2.8744,174.11,174.05,4.02492]
[1729743481512,4.52,174.1,174.05,4.02492]
[1729743481712,4.52,174.1,174.05,1.14952]
[1729743481911,7.3947,174.1,174.05,1.14952]
[1729743484517,17.66710046,174.13,174.05,1.14952]
[1729743484822,4.5,174.13,174.05,1.14952]
[1729743485318,4.5,174.13,174.08,2.8748]
[1729743485526,4.5,174.13,174.08,4.02432]
[1729743486113,17.66710046,174.1,174.02,2.8759]
[1729743486323,4.5,174.09,174.02,2.8759]
[1729743486621,4.5,174.09,174.02,4.02539]
[1729743487016,2.875,174.08,174.02,4.02539]
[1729743487520,4.52,174.08,174.02,1.14949]
[1729743488617,4.52,174.08,174.03,2.8757]
[1729743489010,4.52,174.08,174.03,4.02519]
[1729743489412,4.52,174.08,174.03,1.14949]
[1729743489613,2.8751,174.07,174.03,1.14949]
[1729743490423,2.8753,174.06,174.03,1.14949]
[1729743490821,4.52,174.08,174.03,1.14949]
[1729743491426,2.8751,174.07,174.03,1.14949]
[1729743491824,4.52,174.08,174.03,1.14949]
[1729743492023,17.66710046,174.12,174.03,1.14949]
[1729743492220,4.52,174.11,174.03,1.14949]
[1729743493231,2.8746,174.1,174.05,2.8754]
[1729743493732,66.58,174.11,174.01,1.14949]
[1729743493922,17.66710046,174.05,173.96,1.14949]
[1729743494230,4.52,174.04,173.96,1.14949]
[1729743494533,2.8759,174.03,173.97,2.8767]
[1729743495036,2.8759,174.03,173.97,3.97682]
[1729743495527,2.876,174.02,173.97,1.10012]
[1729743495919,2.876,174.02,173.97,1.14978]
[1729743496327,2.8759,174.02,173.97,1.10009]
[1729743496735,2.8759,174.02,173.97,3.97679]
[1729743497332,2.8759,174.02,173.97,1.10009]
[1729743497725,2.8761,174.01,173.97,1.10009]
[1729743497929,4.52,174.0,173.97,1.10009]
[1729743499028,7.3963,174.0,173.97,1.10009]
[1729743499235,7.3963,174.0,173.96,1.09996]
[1729743500132,2.8765,173.99,173.96,1.09996]
[1729743500330,17.66710046,173.99,173.84,17.66710046]
[1729743500545,17.66710046,173.99,173.85,1.2396]
[1729743501044,2.877,173.96,173.9,2.8778]
[1729743501343,4.52,173.95,173.9,3.97783]
[1729743501727,4.52,173.95,173.9,1.10003]
[1729743501928,2.8773,173.94,173.9,1.10003]
[1729743502230,4.52,173.95,173.9,1.15031]
[1729743502424,17.66710046,173.99,173.85,1.2396]
[1729743502741,4.52,173.98,173.85,6.85956]
[1729743503238,4.52,173.98,173.85,1.09996]
[1729743503437,4.52,173.97,173.85,1.15025]
[1729743503638,7.3968,173.97,173.9,2.8778]
[1729743504030,4.52,173.97,173.9,1.15025]
[1729743504331,2.8766,173.98,173.9,1.15025]
[1729743504529,4.52,173.97,173.9,1.15025]
[1729743504725,4.52,173.96,173.9,1.15025]
[1729743504932,4.52,173.96,173.9,1.09996]
[1729743505124,4.52,173.96,173.9,1.14998]
[1729743505839,4.52,173.96,173.94,2.8771]
[1729743506138,4.52,173.96,173.94,1.14998]
[1729743506633,4.52,173.96,173.94,4.02708]
[1729743506830,4.52,173.96,173.94,1.14998]
[1729743508237,4.52,173.96,173.94,4.02718]
[1729743509135,4.52,173.96,173.79,13.95658752]
[1729743509136,15.57184354,173.96,173.73,390.08]
[1729743509337,15.57184354,173.96,173.81,2.4203]
[1729743509338,11.05184354,173.92,173.81,2.4203]
[1729743509641,4.76,173.91,173.81,2.4203]
[1729743509937,4.76,173.91,173.86,2.8784]
[1729743510838,4.76,173.91,173.86,4.02881]
[1729743511043,13.92894354,173.95,173.88,2.8781]
[1729743511238,4.76,173.94,173.88,2.8781]
[1729743511538,4.76,173.93,173.88,2.8781]
[1729743511741,4.76,173.93,173.88,4.02851]
[1729743512341,11.05184354,173.97,173.91,2.8777]
[1729743512644,4.76,173.96,173.91,2.8777]
[1729743512834,4.76,173.96,173.91,4.02811]
[1729743513037,7.637,173.96,173.91,4.02811]
[1729743514348,7.637,173.96,173.91,1.15041]
[1729743514535,4.78,173.96,173.91,1.15041]
[1729743515042,4.78,173.96,173.95,2.8771]
[1729743515547,4.78,173.96,173.95,4.02751]
[1729743517242,4.78,173.96,173.95,1.15041]
[1729743518745,4.78,173.96,173.95,4.02751]
[1729743519944,4.78,173.96,173.87,7.6733749]
[1729743519945,11.05184354,173.96,173.74,133.73528408]
[1729743520146,4.78,173.97,173.81,11.05184354]
[1729743520147,13.92924354,173.94,173.81,11.05184354]
[1729743520344,4.78,173.93,173.81,12.20219354]
[1729743520648,4.78,173.93,173.82,1.057716]
[1729743520842,4.78,173.93,173.82,1.15035]
[1729743521145,4.78,173.93,173.84,11.05184354]
[1729743521646,4.78,173.93,173.84,12.20219354]
[1729743521846,4.78,173.93,173.87,11.05184354]
[1729743522034,4.78,173.96,173.88,2.5131]
[1729743522746,4.78,173.96,173.92,2.8775]
[1729743523449,4.78,173.96,173.92,4.02785]
[1729743524042,4.78,173.96,173.92,2.8775]
[1729743524544,4.78,173.96,173.92,4.02765]
[1729743525446,4.78,173.96,173.92,1.15015]
[1729743525646,11.05184354,173.94,173.89,1.15015]
[1729743525840,4.78,173.96,173.8,12.20199354]
[1729743526046,4.78,173.96,173.83,11.05184354]
[1729743526252,4.78,173.96,173.84,3.7207]
[1729743526549,4.78,173.96,173.85,11.05184354]
[1729743526742,4.78,173.95,173.85,12.15190354]
[1729743527253,4.78,173.95,173.85,16.93190354]
[1729743527456,4.78,173.95,173.91,2.8776]
[1729743527848,4.78,173.95,173.91,3.97766]
[1729743529549,4.78,173.95,173.92,2.8775]
[1729743530155,4.78,173.95,173.92,3.97756]
[1729743530760,4.78,173.95,173.92,1.10006]
[1729743531662,11.05184354,173.99,173.92,1.10006]
[1729743531857,4.78,173.98,173.92,1.10006]
[1729743533063,2.877,173.96,173.92,1.10006]
[1729743533465,4.78,173.98,173.92,1.10006]
[1729743533765,2.877,173.96,173.92,1.10006]
[1729743534359,2.877,173.96,173.91,2.8776]
[1729743534570,13.92884354,173.96,173.91,2.8776]
[1729743534758,13.92884354,173.96,173.85,11.05184354]
[1729743534958,11.05184354,173.96,173.85,11.05184354]
[1729743535166,2.8771,173.95,173.85,11.05184354]
[1729743535367,4.84,173.94,173.85,11.05184354]
[1729743535770,4.84,173.94,173.91,2.8777]
[1729743537467,4.84,173.94,173.85,11.05184354]
[1729743538673,7.7172,173.95,173.84,3.7207]
[1729743538874,4.84,173.95,173.85,11.05184354]
[1729743539268,4.84,173.95,173.85,12.15187354]
[1729743539864,4.84,173.95,173.92,2.8774]
[1729743540068,4.84,173.95,173.85,12.15187354]
[1729743541772,4.84,173.95,173.93,2.8774]
[1729743542076,4.84,173.95,173.93,3.9774]
[1729743543467,4.84,173.95,173.93,1.1]
[1729743543666,4.84,173.95,173.94,2.8772]
[1729743544070,11.05184354,174.01,173.93,1.1]
[1729743544266,4.84,174.0,173.97,2.8767]
[1729743544476,4.84,173.99,173.97,2.8767]
[1729743544675,4.84,173.99,173.93,1.1]
[1729743545775,11.05184354,173.97,173.93,1.1]
[1729743545975,11.05184354,173.97,173.8,2.80575353]
[1729743545976,11.05184354,173.95,173.89,1.1]
[1729743546176,11.05184354,173.95,173.81,14.66634354]
[1729743546177,4.84,173.94,173.81,14.66634354]
[1729743546480,2.8775,173.93,173.86,2.8784]
[1729743547083,2.8775,173.93,173.87,2.8783]
[1729743547673,2.8775,173.93,173.87,3.97833]
[1729743547976,4.84,173.94,173.87,1.10003]
[1729743548175,4.84,173.94,173.88,2.8782]
[1729743548176,7.7173,173.94,173.88,2.8782]
[1729743548675,7.7173,173.94,173.88,3.97823]
[1729743549581,7.7173,173.94,173.88,1.10003]
[1729743549784,7.7173,173.94,173.89,2.878]
[1729743550379,7.7173,173.94,173.89,3.97803]
[1729743551181,11.05184354,173.92,173.89,1.10003]
[1729743551378,11.05184354,173.92,173.75,11.05184354]
[1729743551577,4.84,173.94,173.76,3.99660774]
[1729743551578,11.05184354,173.87,173.76,3.99660774]
[1729743551779,4.84,173.86,173.76,2.93864958]
[1729743552276,4.84,173.86,173.76,4.03848958]
[1729743552478,4.84,173.86,173.76,1.09984]
[1729743552675,4.84,173.86,173.81,2.8794]
[1729743552875,4.84,173.86,173.81,4.02998]
[1729743553076,4.84,173.86,173.81,1.15058]
[1729743553472,4.84,173.86,173.84,2.8788]
[1729743553677,4.84,173.86,173.82,2.4762]
[1729743553678,15.91184354,173.89,173.82,2.4762]
[1729743553984,4.86,173.89,173.82,3.57616]
[1729743554677,4.86,173.9,173.82,14.62800354]
[1729743554875,4.86,173.9,173.87,2.8783]
[1729743555179,4.86,173.9,173.87,1.09996]
[1729743556078,4.86,173.9,173.87,3.97826]
[1729743556989,4.86,173.9,173.87,3.97836]
[1729743557777,4.86,173.9,173.87,1.09996]
[1729743557976,2.8781,173.89,173.85,1.10003]
[1729743558173,11.05184354,173.88,173.85,1.15058]
[1729743558372,11.05184354,173.88,173.85,1.0999]
[1729743560173,11.05184354,173.88,173.85,1.15058]
[1729743561284,13.93024354,173.88,173.83,2.879]
[1729743561583,13.93024354,173.88,173.83,4.02958]
[1729743562191,11.05184354,173.88,173.85,2.8787]
[1729743562596,4.86,173.87,173.85,4.02928]
[1729743562797,4.86,173.9,173.85,1.15058]
[1729743563298,4.86,173.9,173.86,2.8785]
[1729743563489,4.86,173.9,173.85,1.15058]
[1729743564187,4.86,173.9,173.88,2.8781]
[1729743564383,76.04914354,173.94,173.85,1.15058]
[1729743564384,73.17184354,173.94,173.85,1.15058]
[1729743564586,4.86,173.93,173.85,1.15058]
[1729743565386,4.86,173.93,173.9,2.8778]
[1729743565989,4.86,173.93,173.91,2.8777]
[1729743566586,4.86,173.93,173.91,4.02828]
[1729743567794,4.86,173.93,173.91,1.15058]
[1729743568092,4.86,173.93,173.89,1.15058]
[1729743568492,4.86,173.93,173.9,2.8779]
[1729743568686,4.86,173.93,173.9,4.02848]
[1729743570087,4.92,173.95,173.9,1.15058]
[1729743570289,11.05184354,173.95,173.9,1.15058]
[1729743570487,4.92,173.94,173.9,1.15058]
[1729743570690,2.8775,173.93,173.9,1.15058]
[1729743570894,4.92,173.94,173.9,1.15058]
[1729743571993,11.05184354,173.92,173.9,1.15058]
[1729743572186,11.05184354,173.92,173.81,2.8793]
[1729743572397,11.05184354,173.87,173.81,2.8793]
[1729743572596,4.92,173.86,173.81,4.02988]
[1729743573096,7.7986,173.86,173.81,4.02988]
[1729743573297,4.92,173.86,173.81,1.15058]
[1729743573899,4.92,173.86,173.81,1.09971]
[1729743574095,4.92,173.86,173.81,3.97911]
[1729743574394,4.92,173.86,173.81,1.09971]
[1729743574800,2.8789,173.85,173.81,1.09971]
[1729743575698,4.92,173.86,173.81,1.09971]
[1729743575892,7.7986,173.86,173.82,2.8792]
[1729743576604,7.7986,173.86,173.82,3.97891]
[1729743577497,7.7986,173.86,173.82,2.8792]
[1729743577701,13.93084354,173.84,173.82,1.09971]
[1729743578097,11.05184354,173.84,173.82,1.09971]
[1729743578601,11.05184354,173.84,173.78,1.07875]
[1729743578796,11.05184354,173.84,173.73,1.13024]
[1729743578998,4.92,173.83,173.74,11.05184354]
[1729743579190,4.92,173.82,173.75,1.2882]
[1729743579390,4.92,173.82,173.8,2.8795]
[1729743579796,4.92,173.82,173.8,3.95878]
[1729743579992,4.92,173.82,173.8,1.07928]
[1729743580695,4.92,173.82,173.8,3.95868]
[1729743581702,4.92,173.82,173.8,1.07928]
[1729743581905,4.92,173.82,173.81,2.8794]
[1729743582305,4.92,173.82,173.81,3.95868]
[1729743582507,4.92,173.82,173.81,1.07928]
[1729743583809,15.97184354,173.82,173.61,30.67026754]
[1729743584003,18.85104354,173.82,173.78,2.8798]
[1729743584506,18.85104354,173.82,173.78,1.0791]
[1729743584507,15.97184354,173.82,173.78,1.0791]
[1729743584711,62.12,173.92,173.78,1.0791]
[1729743584712,11.05184354,173.84,173.78,1.0791]
[1729743584913,4.92,173.83,173.78,1.0791]
[1729743585600,4.92,173.85,173.79,11.05184354]
[1729743585806,4.92,173.85,173.8,1.2809]
[1729743586005,4.92,173.85,173.8,2.35996]
[1729743587304,4.92,173.85,173.82,2.8792]
[1729743587704,4.92,173.85,173.82,3.95826]
[1729743589606,4.92,173.86,173.84,2.8787]
[1729743590109,4.92,173.86,173.84,3.95776]
[1729743590704,4.92,173.86,173.84,1.07906]
[1729743593809,4.92,173.86,173.85,2.8787]
[1729743594008,4.92,173.88,173.85,1.07906]
[1729743595515,4.92,173.88,173.69,2.86662303]
[1729743595516,11.05184354,173.87,173.69,2.86662303]
[1729743595814,2.8786,173.86,173.8,2.8794]
[1729743596212,2.8786,173.86,173.8,1.07919]
[1729743596604,11.05184354,173.87,173.8,1.07919]
[1729743596909,11.05184354,173.87,173.83,2.8789]
[1729743597316,11.05184354,173.87,173.83,3.95828]
[1729743597815,4.92,173.88,173.83,1.07938]
[1729743598010,4.92,173.88,173.86,2.8786]
[1729743598514,4.92,173.88,173.86,3.95798]
[1729743600824,13.92974354,173.9,173.86,3.95798]
[1729743601027,5.04,173.89,173.86,3.95798]
[1729743603721,2.8784,173.88,173.86,1.07938]
[1729743603917,5.04,173.89,173.86,1.07938]
[1729743604426,5.04,173.89,173.87,2.8783]
[1729743604723,11.05184354,173.91,173.86,1.07938]
[1729743604910,11.05184354,173.91,173.78,2.87344866]
[1729743604911,2.879,173.84,173.78,2.8798]
[1729743605111,5.04,173.83,173.72,3.6594]
[1729743605322,5.04,173.83,173.72,4.81054]
[1729743605625,5.04,173.83,173.74,2.8804]
[1729743605626,11.05184354,173.81,173.74,2.8804]
[1729743605823,11.05184354,173.81,173.74,1.15114]
[1729743607212,5.04,173.83,173.74,1.15114]
[1729743607418,11.05184354,173.82,173.74,1.15114]
[1729743607815,11.05184354,173.82,173.78,2.8799]
[1729743608121,5.04,173.83,173.78,2.8799]
[1729743608122,5.04,173.83,173.78,1.15114]
[1729743608323,5.04,173.82,173.79,2.8796]
[1729743608617,5.04,173.82,173.78,1.15114]
[1729743609212,5.04,173.82,173.78,4.03094]
[1729743609823,7.9192,173.82,173.78,1.15114]
[1729743610016,5.04,173.82,173.78,1.15114]
[1729743610418,5.04,173.82,173.8,2.8795]
[1729743610612,11.05184354,173.85,173.78,1.15114]
[1729743610613,5.04,173.85,173.78,1.15114]
[1729743610825,5.04,173.85,173.79,1.1742]
[1729743611227,5.04,173.85,173.82,2.8792]
[1729743611526,5.04,173.85,173.82,1.15114]
[1729743611827,11.05184354,173.84,173.82,1.15114]
[1729743612030,11.05184354,173.84,173.8,1.15114]
[1729743612324,1.77951,173.8,173.75,2.8804]
[1729743612526,5.04,173.79,173.75,2.8804]
[1729743612716,5.04,173.79,173.75,4.03167]
[1729743612917,5.04,173.79,173.75,3.98058]
[1729743613126,5.04,173.79,173.75,2.8804]
[1729743613425,5.04,173.79,173.75,3.98058]
[1729743614423,5.04,173.79,173.76,2.8802]
[1729743614621,5.04,173.79,173.75,1.10018]
[1729743615017,5.04,173.79,173.76,2.8802]
[1729743615419,5.04,173.79,173.76,3.98038]
[1729743619434,5.04,173.79,173.64,5.7644]
[1729743619435,2.8803,173.76,173.74,1.10009]
[1729743619730,11.05184354,173.78,173.66,1.15154]
[1729743619926,11.05184354,173.78,173.64,11.05184354]
[1729743620120,11.05184354,173.78,173.64,12.15196354]
[1729743620322,11.05184354,173.75,173.64,12.15196354]
[1729743620532,5.04,173.74,173.64,12.15196354]
[1729743620731,5.04,173.74,173.64,1.10012]
[1729743620935,5.04,173.74,173.64,12.15196354]
[1729743621325,7.9206,173.74,173.64,12.15196354]
[1729743621526,5.04,173.74,173.64,1.10012]
[1729743621730,2.881,173.72,173.64,1.10012]
[1729743621929,5.04,173.74,173.64,1.10012]
[1729743622131,11.05184354,173.71,173.64,1.10012]
[1729743622437,2.8811,173.71,173.64,1.10012]
[1729743622633,11.05184354,173.73,173.64,1.1517]
[1729743623438,2.8811,173.71,173.65,2.8819]
[1729743623637,11.05184354,173.73,173.65,1.09996]
[1729743623838,11.05184354,173.73,173.67,2.8816]
[1729743624133,11.05184354,173.73,173.67,1.1517]
[1729743624542,13.93274354,173.73,173.67,3.98156]
[1729743624747,11.05184354,173.71,173.67,1.1517]
[1729743625137,2.8811,173.71,173.67,1.1517]
[1729743625750,11.05184354,173.73,173.67,1.09996]
[1729743625953,11.05184354,173.7,173.64,1.1517]
[1729743626246,2.8817,173.68,173.63,1.1517]
[1729743626551,2.8817,173.68,173.63,1.09965]
[1729743627048,8.1017,173.67,173.63,1.09965]
[1729743627346,11.05184354,173.65,173.63,1.1517]
[1729743627745,2.8824,173.64,173.63,1.1517]
[1729743627940,11.05184354,173.65,173.63,1.1517]
[1729743628354,2.8822,173.64,173.63,1.1517]
[1729743628549,2.8822,173.64,173.63,1.10019]
[1729743628743,5.22,173.67,173.63,1.15233]
[1729743629052,2.8821,173.65,173.63,1.15233]
[1729743629257,5.22,173.64,173.63,1.15233]
[1729743629445,8.1022,173.64,173.63,1.15233]
[1729743629641,16.27184354,173.64,173.62,1.10012]
[1729743629846,16.27184354,173.64,173.62,1.1524]
[1729743630154,5.22,173.64,173.62,1.1524]
[1729743631454,5.22,173.64,173.59,2.883]
[1729743631455,8.1022,173.64,173.59,2.883]
[1729743631843,8.1022,173.64,173.53,11.05184354]
[1729743632050,8.1022,173.64,173.59,2.8829]
[1729743632247,8.1022,173.64,173.53,11.05184354]
[1729743632248,5.22,173.64,173.53,11.05184354]
[1729743632451,5.22,173.64,173.54,1.05938126]
[1729743632654,5.22,173.64,173.55,11.05184354]
[1729743632846,5.22,173.64,173.56,1.05931325]
[1729743633046,5.22,173.68,173.66,2.8818]
[1729743633250,5.22,173.68,173.58,11.05184354]
[1729743633251,16.27184354,173.71,173.6,11.05184354]
[1729743633458,16.27184354,173.71,173.6,5.22]
[1729743633658,16.27184354,173.71,173.64,2.8821]
[1729743634154,2.8814,173.7,173.64,2.8821]
[1729743634752,16.27184354,173.71,173.48,5.7697]
[1729743634753,2.882,173.66,173.48,5.7697]
[1729743634954,16.27184354,173.65,173.53,11.05184354]
[1729743635157,5.22,173.64,173.54,1.05930491]
[1729743635360,5.22,173.64,173.6,2.8828]
[1729743635655,5.22,173.64,173.53,11.05184354]
[1729743635862,5.22,173.64,173.54,1.05929537]
[1729743636258,5.22,173.64,173.55,11.05184354]
[1729743636458,5.22,173.64,173.56,1.05929537]
[1729743636651,5.22,173.64,173.56,2.27669537]
[1729743636856,5.22,173.64,173.56,2.36963]
[1729743637057,5.22,173.64,173.57,1.0592299]
[1729743637660,5.22,173.64,173.58,11.05184354]
[1729743637859,5.22,173.66,173.58,11.05184354]
[1729743638060,5.22,173.66,173.59,2.4659]
[1729743638361,11.05184354,173.7,173.59,2.4659]
[1729743638564,5.22,173.67,173.59,2.4659]
[1729743638756,5.22,173.68,173.6,12.11091015]
[1729743638961,5.22,173.68,173.6,11.05184354]
[1729743639156,5.22,173.68,173.67,2.8817]
[1729743639559,5.22,173.68,173.6,12.20407354]
[1729743639560,11.05184354,173.78,173.72,2.8809]
[1729743639758,11.05184354,173.78,173.72,4.03313]
[1729743639759,5.22,173.77,173.72,4.03313]
[1729743639964,5.22,173.77,173.72,1.10006]
[1729743640160,13.93214354,173.76,173.72,1.10006]
[1729743640355,11.05184354,173.76,173.72,1.10006]
[1729743640765,2.8807,173.74,173.72,1.10006]
[1729743641063,11.05184354,173.76,173.72,1.10006]
[1729743641566,2.8806,173.74,173.72,1.10006]
[1729743641769,11.05184354,173.76,173.72,1.10006]
[1729743641959,11.05184354,173.78,173.72,1.10006]
[1729743642265,5.22,173.77,173.72,1.10006]
[1729743642669,5.22,173.77,173.73,2.8806]
[1729743642967,5.22,173.77,173.73,3.98066]
[1729743643156,5.22,173.77,173.73,1.10006]
[1729743643363,8.1001,173.77,173.73,1.10006]
[1729743644055,5.22,173.77,173.73,1.10006]
[1729743644254,8.1001,173.77,173.73,1.10006]
[1729743645969,8.1001,173.77,173.61,5.22]
[1729743645970,2.8811,173.71,173.69,1.1]
[1729743646173,5.22,173.7,173.69,0.20004]
[1729743646373,5.22,173.7,173.68,1.1519]
[1729743646668,5.22,173.7,173.68,1.10019]
[1729743649262,2.8817,173.68,173.67,1.10019]
[1729743649568,11.05184354,173.68,173.65,1.15214]
[1729743650071,11.05184354,173.68,173.65,1.10012]
[1729743650265,2.8817,173.67,173.65,1.10012]
[1729743652168,19.15304354,173.7,173.66,2.8818]
[1729743652768,5.22,173.69,173.66,1.10012]
[1729743653366,5.22,173.71,173.66,1.10012]
[1729743653966,5.22,173.71,173.7,2.8812]
[1729743654473,16.27184354,173.73,173.7,3.98132]
[1729743654971,5.22,173.73,173.7,3.98132]
[1729743655470,5.22,173.73,173.72,2.8809]
[1729743655662,62.2,173.79,173.72,2.8809]
[1729743655663,5.42,173.75,173.72,1.10012]
[1729743655867,73.25184354,173.79,173.72,1.10012]
[1729743656177,5.42,173.78,173.74,2.8805]
[1729743656474,5.42,173.78,173.72,1.10012]
[1729743656666,65.0798,173.79,173.72,1.10012]